bitfinex/quotes_SOLUSD_20241127
["timestamp","ask_amount","ask_price","bid_price","bid_amount"]
[1732725878267,12.53549908,239.87,239.78,12.53549908]
[1732725878467,12.53549908,239.81,239.74,12.53549908]
[1732725879544,12.53549908,239.81,239.74,16.70659908]
[1732725880149,12.53549908,239.81,239.72,16.70689908]
[1732725880351,12.53549908,239.77,239.7,10.3629]
[1732725880547,12.53549908,239.81,239.73,12.53549908]
[1732725880762,12.53549908,239.83,239.75,12.53549908]
[1732725881269,12.53549908,239.79,239.71,12.53549908]
[1732725881773,12.53549908,239.79,239.71,16.70709908]
[1732725882965,12.53549908,239.81,239.73,12.53549908]
[1732725883546,12.53549908,239.81,239.73,16.70679908]
[1732725883767,13.78649908,239.81,239.71,16.70709908]
[1732725883970,12.53549908,239.77,239.7,6.1912]
[1732725884267,1.251,239.81,239.7,6.1912]
[1732725884268,12.53549908,239.75,239.7,6.1912]
[1732725884857,12.53549908,239.77,239.7,6.1912]
[1732725885052,12.53549908,239.79,239.71,12.53549908]
[1732725885678,12.53549908,239.79,239.71,16.70699908]
[1732725886671,17.53549908,239.88,239.7,6.1912]
[1732725886672,12.53549908,239.75,239.7,6.1912]
[1732725886849,12.53549908,239.75,239.67,16.70769908]
[1732725887356,12.53549908,239.79,239.71,12.53549908]
[1732725887687,12.53549908,239.77,239.69,12.53549908]
[1732725887858,12.53549908,239.79,239.71,12.53549908]
[1732725888377,12.53549908,239.81,239.73,12.53549908]
[1732725889267,12.53549908,239.81,239.73,16.70669908]
[1732725889660,12.53549908,239.79,239.73,4.1712]
[1732725891577,12.53549908,239.75,239.71,4.1716]
[1732725891942,12.53549908,239.75,239.69,4.1718]
[1732725893974,12.53549908,239.75,239.68,4.1722]
[1732725894675,1.2511,239.77,239.68,4.1722]
[1732725894676,12.53549908,239.77,239.69,12.53549908]
[1732725894986,12.53549908,239.81,239.71,12.53549908]
[1732725895488,12.53549908,239.79,239.71,12.53549908]
[1732725895680,12.53549908,239.88,239.71,12.53549908]
[1732725895681,12.53549908,239.81,239.74,4.1711]
[1732725895976,12.53549908,239.83,239.75,12.53549908]
[1732725896759,12.53549908,239.83,239.76,4.1708]
[1732725897459,12.53549908,239.83,239.75,12.53549908]
[1732725897662,12.53549908,239.81,239.74,4.1711]
[1732725901068,12.53549908,239.83,239.75,12.53549908]
[1732725902164,12.53549908,239.83,239.76,6.12]
[1732725902787,12.53549908,239.83,239.77,4.1706]
[1732725903285,12.53549908,239.81,239.76,6.12]
[1732725903663,12.53549908,239.81,239.76,10.2907]
[1732725904179,12.53549908,239.83,239.76,10.2907]
[1732725907699,12.53549908,239.79,239.76,10.2907]
[1732725908288,12.53549908,239.79,239.73,16.1422]
[1732725908598,12.53549908,239.79,239.73,20.3135]
[1732725908895,12.53549908,239.81,239.73,32.84899908]
[1732725909199,12.53549908,239.83,239.75,12.53549908]
[1732725909378,12.53549908,239.85,239.77,12.53549908]
[1732725909774,12.53549908,239.83,239.78,4.1704]
[1732725910571,12.53549908,239.79,239.73,20.3135]
[1732725911177,12.53549908,239.77,239.71,10.2764]
[1732725911596,12.53549908,239.75,239.71,6.1049]
[1732725911798,12.53549908,239.75,239.69,4.1719]
[1732725913784,12.53549908,239.77,239.69,4.1719]
[1732725914694,12.53549908,239.79,239.72,12.53549908]
[1732725915513,12.53549908,239.81,239.74,12.53549908]
[1732725915679,12.53549908,239.79,239.73,4.1713]
[1732725916193,12.53549908,239.81,239.73,4.1713]
[1732725916397,6.7467382,239.93,239.73,4.1713]
[1732725916398,12.53549908,239.85,239.77,12.53549908]
[1732725916603,12.53549908,239.85,239.79,12.53549908]
[1732725916899,12.53549908,239.85,239.77,12.53549908]
[1732725917601,12.53549908,239.81,239.74,6.4142]
[1732725918099,12.53549908,239.81,239.74,10.5853]
[1732725918781,12.53549908,239.83,239.75,12.53549908]
[1732725918982,1.2506,239.88,239.78,12.53549908]
[1732725919289,12.53549908,239.85,239.78,12.53549908]
[1732725919675,12.53549908,239.85,239.79,4.1703]
[1732725921200,12.53549908,239.87,239.8,16.4861]
[1732725921899,12.53549908,239.87,239.8,20.6561]
[1732725922098,12.53549908,239.85,239.8,20.6561]
[1732725922677,12.53549908,239.87,239.8,20.6561]
[1732725923107,12.53549908,239.89,239.81,12.53549908]
[1732725923477,12.53549908,239.91,239.83,12.53549908]
[1732725923903,12.53549908,239.91,239.84,4.1694]
[1732725925209,12.53549908,239.93,239.85,12.53549908]
[1732725925403,12.53549908,239.95,239.87,12.53549908]
[1732725926009,12.53549908,239.95,239.88,4.1687]
[1732725926590,12.53549908,239.91,239.85,6.5749]
[1732725928909,13.78589908,239.91,239.85,6.5749]
[1732725929116,12.53549908,239.89,239.85,6.5749]
[1732725929285,12.53549908,239.89,239.83,4.1696]
[1732725929789,12.53549908,239.91,239.83,16.70509908]
[1732725930789,12.53549908,239.89,239.81,4.1697]
[1732725930998,12.53549908,239.87,239.81,4.1697]
[1732725931197,12.53549908,239.89,239.81,16.70519908]
[1732725931690,12.53549908,239.91,239.83,12.53549908]
[1732725931899,12.53549908,239.91,239.84,4.1694]
[1732725933413,12.53549908,239.91,239.83,12.53549908]
[1732725933414,12.53549908,239.89,239.82,4.1697]
[1732725934110,12.53549908,239.91,239.83,12.53549908]
[1732725934308,12.53549908,239.95,239.87,12.53549908]
[1732725934621,8.00705689,239.95,239.87,8.00705689]
[1732725934794,8.00705689,239.95,239.85,8.00705689]
[1732725935108,8.00705689,239.95,239.87,8.00705689]
[1732725935410,8.00705689,239.95,239.88,4.1687]
[1732725935612,8.00705689,239.91,239.8,96.4605]
[1732725935941,8.00705689,239.91,239.83,8.00705689]
[1732725936087,8.00705689,239.89,239.81,12.17695689]
[1732725936293,12.51933752,239.88,239.8,26.8306]
[1732725936493,12.51933752,239.88,239.8,22.6605]
[1732725936905,12.51933752,239.88,239.8,26.8305]
[1732725939515,12.51933752,239.86,239.8,10.3445]
[1732725940495,12.51933752,239.86,239.8,6.1744]
[1732725940692,13.77003752,239.86,239.8,6.1744]
[1732725940991,13.76993752,239.88,239.8,6.1744]
[1732725941192,13.76993752,239.88,239.8,10.3444]
[1732725941816,12.51933752,239.86,239.8,10.3444]
[1732725941995,12.51933752,239.86,239.8,6.1744]
[1732725942200,12.51933752,239.84,239.8,6.1744]
[1732725942514,12.51933752,239.84,239.78,4.1703]
[1732725942908,12.51933752,239.84,239.76,4.1706]
[1732725943217,12.51933752,239.84,239.75,27.91393752]
[1732725943515,12.51933752,239.84,239.75,32.08483752]
[1732725944195,13.77013752,239.84,239.75,32.08483752]
[1732725945226,12.51933752,239.82,239.75,16.69023752]
[1732725945401,12.51933752,239.82,239.73,16.69063752]
[1732725945722,12.51933752,239.88,239.67,12.51933752]
[1732725945723,12.51933752,239.76,239.67,12.51933752]
[1732725947313,13.77053752,239.76,239.67,12.51933752]
[1732725947514,12.51933752,239.74,239.67,12.51933752]
[1732725947717,12.51933752,239.7,239.61,12.51933752]
[1732725947914,12.51933752,239.66,239.6,4.1734]
[1732725948131,12.51933752,239.68,239.6,4.1734]
[1732725948913,12.51933752,239.66,239.59,12.51933752]
[1732725949231,12.51933752,239.66,239.58,0.5007393]
[1732725949432,13.77103752,239.66,239.58,4.6745393]
[1732725949736,13.77103752,239.66,239.59,12.51933752]
[1732725949909,12.51933752,239.64,239.58,0.5007393]
[1732725950115,12.51933752,239.6,239.58,0.5007393]
[1732725951130,4.3811,239.66,239.58,0.5007393]
[1732725951131,12.51933752,239.62,239.58,0.5007393]
[1732725951340,12.51933752,239.67,239.59,12.51933752]
[1732725951706,12.51933752,239.65,239.58,0.5007393]
[1732725951934,12.51933752,239.63,239.58,0.5007393]
[1732725952631,12.51933752,239.65,239.58,0.5007393]
[1732725952808,12.51933752,239.63,239.58,0.5007393]
[1732725954717,13.77123752,239.63,239.58,0.5007393]
[1732725954916,12.51933752,239.61,239.58,0.5007393]
[1732725955641,1.2519,239.63,239.58,0.5007393]
[1732725956438,12.51933752,239.66,239.58,13.02007682]
[1732725956643,1.2517,239.67,239.58,13.02007682]
[1732725956838,12.51933752,239.66,239.58,13.02007682]
[1732725957539,13.77113752,239.66,239.58,13.02007682]
[1732725958035,13.77113752,239.66,239.58,0.5007393]
[1732725960138,13.77113752,239.66,239.58,13.02007682]
[1732725960556,1.2518,239.66,239.6,12.51933752]
[1732725960729,1.2518,239.66,239.58,13.02007682]
[1732725961242,1.2518,239.66,239.6,12.51933752]
[1732725962237,20.0,239.69,239.6,12.51933752]
[1732725962238,1.2517,239.67,239.6,12.51933752]
[1732725962634,21.2516,239.69,239.62,12.51933752]
[1732725962841,21.2516,239.69,239.64,12.51933752]
[1732725963239,21.2516,239.69,239.62,12.51933752]
[1732725963422,12.51933752,239.68,239.6,12.51933752]
[1732725963622,21.2516,239.69,239.62,12.51933752]
[1732725963923,28.37393752,239.72,239.64,12.51933752]
[1732725964136,1.2513,239.75,239.66,12.51933752]
[1732725964440,12.51933752,239.74,239.66,12.51933752]
[1732725964739,12.51933752,239.72,239.64,12.51933752]
[1732725964949,1.2513,239.75,239.68,12.51933752]
[1732725965321,1.2512,239.77,239.7,12.51933752]
[1732725965542,5.94999193,239.81,239.74,12.51933752]
[1732725965847,1.2508,239.84,239.78,12.51933752]
[1732725966021,1.2506,239.87,239.8,12.51933752]
[1732725966348,12.51933752,239.86,239.78,12.51933752]
[1732725966551,12.51933752,239.84,239.76,12.51933752]
[1732725967041,12.51933752,239.82,239.74,12.51933752]
[1732725967450,12.51933752,239.8,239.72,12.51933752]
[1732725967823,12.51933752,239.78,239.7,19.15593752]
[1732725968128,1.2511,239.77,239.7,19.15593752]
[1732725968952,12.51933752,239.76,239.68,12.51933752]
[1732725969141,1.2511,239.77,239.7,12.51933752]
[1732725969655,20.0,239.75,239.68,12.51933752]
[1732725969833,12.51933752,239.74,239.64,19.03173752]
[1732725970030,12.51933752,239.72,239.64,12.51933752]
[1732725970445,1.2515,239.71,239.64,12.51933752]
[1732725970650,12.51933752,239.69,239.61,12.51933752]
[1732725971530,12.51933752,239.67,239.59,12.51933752]
[1732725972250,12.51933752,239.67,239.59,16.69293752]
[1732725972251,13.77103752,239.67,239.59,16.69293752]
[1732725972755,13.77103752,239.67,239.59,12.51933752]
[1732725973656,12.51933752,239.67,239.59,12.51933752]
[1732725973952,12.51933752,239.69,239.61,12.51933752]
[1732725974548,12.51933752,239.69,239.59,12.51933752]
[1732725974738,12.51933752,239.67,239.59,12.51933752]
[1732725975255,12.51933752,239.62,239.58,0.5007393]
[1732725976551,16.0469,239.69,239.58,0.5007393]
[1732725976552,12.51933752,239.6,239.58,0.5007393]
[1732725978143,23.776884,239.59,239.58,0.5007393]
[1732725979266,138.80612152,239.59,239.43,12.51933752]
[1732725979453,12.51933752,239.5,239.43,12.51933752]
[1732725979628,12.51933752,239.51,239.43,12.51933752]
[1732725980563,12.51933752,239.52,239.44,12.51933752]
[1732725981166,12.51933752,239.55,239.47,12.51933752]
[1732725981459,12.51933752,239.56,239.48,12.51933752]
[1732725981837,12.51933752,239.54,239.47,12.51933752]
[1732725982039,12.51933752,239.5,239.39,20.0]
[1732725982238,5.0,239.58,239.39,20.0]
[1732725982239,12.51933752,239.52,239.44,12.51933752]
[1732725982441,22.5099,239.59,239.49,12.51933752]
[1732725982647,12.51933752,239.59,239.44,20.0]
[1732725982840,15.757,239.64,239.53,12.51933752]
[1732725983064,12.51933752,239.58,239.5,12.51933752]
[1732725983862,12.51933752,239.6,239.52,12.51933752]
[1732725984041,12.51933752,239.61,239.53,12.51933752]
[1732725984242,12.51933752,239.59,239.52,12.51933752]
[1732725985169,23.776884,239.59,239.52,12.51933752]
[1732725985666,36.29622152,239.59,239.52,12.51933752]
[1732725985969,36.29622152,239.59,239.51,12.51933752]
[1732725986168,12.51933752,239.58,239.5,12.51933752]
[1732725986339,12.51933752,239.57,239.5,12.51933752]
[1732725986545,12.51933752,239.56,239.48,12.51933752]
[1732725986871,12.51933752,239.58,239.51,12.51933752]
[1732725987041,12.51933752,239.61,239.54,12.51933752]
[1732725987743,12.51933752,239.6,239.53,12.51933752]
[1732725988747,12.51933752,239.61,239.53,12.51933752]
[1732725989349,12.51933752,239.6,239.53,12.51933752]
[1732725989543,12.51933752,239.59,239.51,12.51933752]
[1732725989859,5.94999193,239.68,239.56,12.51933752]
[1732725990063,23.776884,239.64,239.58,12.51933752]
[1732725990762,12.51933752,239.62,239.55,12.51933752]
[1732725990961,12.51933752,239.59,239.51,12.51933752]
[1732725991165,12.51933752,239.59,239.43,78.8]
[1732725991166,12.51933752,239.53,239.43,73.8]
[1732725991373,12.51933752,239.53,239.46,12.51933752]
[1732725991539,23.776884,239.55,239.48,12.51933752]
[1732725991860,23.776884,239.55,239.41,6.4461]
[1732725991861,12.51933752,239.56,239.49,12.51933752]
[1732725992046,12.51933752,239.54,239.46,12.51933752]
[1732725992237,36.29622152,239.55,239.47,12.51933752]
[1732725992441,12.51933752,239.52,239.45,12.51933752]
[1732725992642,23.776884,239.51,239.47,12.51933752]
[1732725992944,12.51933752,239.54,239.47,12.51933752]
[1732725992945,23.776884,239.53,239.47,12.51933752]
[1732725993149,36.29622152,239.53,239.45,12.51933752]
[1732725993953,23.776884,239.54,239.47,12.51933752]
[1732725994345,15.0096,239.6,239.49,12.51933752]
[1732725994346,12.51933752,239.57,239.49,12.51933752]
[1732725994564,23.776884,239.56,239.49,12.51933752]
[1732725995557,23.776884,239.56,239.51,12.51933752]
[1732725995761,12.51933752,239.57,239.51,12.51933752]
[1732725995957,12.51933752,239.57,239.49,12.51933752]
[1732725996154,12.51933752,239.55,239.47,12.51933752]
[1732725997070,23.776884,239.54,239.47,12.51933752]
[1732725998045,23.776884,239.54,239.49,12.51933752]
[1732725998249,23.776884,239.56,239.49,12.51933752]
[1732725999451,12.51933752,239.57,239.49,12.51933752]
[1732726000761,12.51933752,239.55,239.47,12.51933752]
[1732726001279,23.776884,239.54,239.47,12.51933752]
[1732726002382,23.776884,239.52,239.45,12.51933752]
[1732726003771,12.51933752,239.51,239.43,12.51933752]
[1732726004456,23.776884,239.5,239.43,12.51933752]
[1732726004961,20.0096,239.6,239.39,12.51933752]
[1732726004962,23.776884,239.44,239.39,12.51933752]
[1732726005353,12.51933752,239.46,239.38,12.51933752]
[1732726005671,23.776884,239.46,239.4,12.51933752]
[1732726005874,23.776884,239.46,239.39,12.51933752]
[1732726005875,36.29622152,239.46,239.39,12.51933752]
[1732726006174,36.29622152,239.46,239.38,12.51933752]
[1732726006474,23.776884,239.44,239.37,12.51933752]
[1732726006775,22.44923637,239.49,239.36,12.51933752]
[1732726006776,23.776884,239.42,239.36,12.51933752]
[1732726007071,23.776884,239.43,239.37,12.51933752]
[1732726007273,36.29622152,239.43,239.36,12.51933752]
[1732726007453,12.51933752,239.41,239.34,0.5007393]
[1732726007658,6.33493637,239.46,239.35,12.51933752]
[1732726007659,23.776884,239.4,239.35,12.51933752]
[1732726007853,12.51933752,239.39,239.34,0.5007393]
[1732726008058,23.776884,239.38,239.34,0.5007393]
[1732726008252,36.29622152,239.39,239.34,0.5007393]
[1732726008476,23.776884,239.36,239.34,0.5007393]
[1732726008679,36.29622152,239.38,239.34,0.5007393]
[1732726009579,12.51933752,239.42,239.34,13.02007682]
[1732726009784,23.776884,239.41,239.34,13.02007682]
[1732726009968,36.29622152,239.39,239.34,0.5007393]
[1732726010168,32.51933752,239.38,239.34,0.5007393]
[1732726010363,23.776884,239.37,239.34,0.5007393]
[1732726011067,23.776884,239.38,239.34,0.5007393]
[1732726011653,12.51933752,239.38,239.34,0.5007393]
[1732726011867,23.776884,239.37,239.34,0.5007393]
[1732726012387,20.0,239.4,239.35,12.51933752]
[1732726012789,20.0,239.4,239.34,0.5007393]
[1732726013358,23.776884,239.39,239.34,0.5007393]
[1732726015279,36.29622152,239.39,239.34,0.5007393]
[1732726015482,1.2532,239.38,239.34,0.5007393]
[1732726015682,23.776884,239.37,239.34,0.5007393]
[1732726016882,12.51933752,239.36,239.34,0.5007393]
[1732726017078,23.776884,239.36,239.34,0.5007393]
[1732726018186,23.776884,239.37,239.34,0.5007393]
[1732726018505,23.776884,239.35,239.34,0.5007393]
[1732726020696,36.29622152,239.35,239.34,0.5007393]
[1732726020989,23.776884,239.24,239.08,79.9378]
[1732726021187,12.51933752,239.22,239.15,12.51933752]
[1732726021366,12.51933752,239.22,239.14,12.51933752]
[1732726021678,23.776884,239.18,239.14,12.51933752]
[1732726021985,23.776884,239.18,239.12,12.51933752]
[1732726022179,23.776884,239.19,239.11,12.51933752]
[1732726022400,35.9011,239.25,239.14,12.51933752]
[1732726022598,12.51933752,239.24,239.16,12.51933752]
[1732726022981,12.51933752,239.22,239.08,6.1378]
[1732726023284,23.776884,239.17,239.11,12.51933752]
[1732726023787,23.776884,239.17,239.0,3.85528438]
[1732726023990,20.0,239.18,239.11,12.51933752]
[1732726024192,5.0,239.24,239.04,12.51933752]
[1732726024193,20.0,239.2,239.13,12.51933752]
[1732726024486,12.51933752,239.17,239.09,12.51933752]
[1732726024689,12.51933752,239.19,239.11,12.51933752]
[1732726025399,12.51933752,239.17,239.09,12.51933752]
[1732726026370,12.51933752,239.19,239.11,12.51933752]
[1732726026889,12.51933752,239.17,239.09,12.51933752]
[1732726027189,12.51933752,239.17,239.08,12.51933752]
[1732726027494,97.99553752,239.17,239.0,2.09205]
[1732726027694,24.81557952,239.26,239.07,12.51933752]
[1732726027896,12.51933752,239.21,239.12,12.51933752]
[1732726028100,20.0,239.18,239.12,12.51933752]
[1732726028475,1.2543,239.17,239.12,12.51933752]
[1732726028674,12.51933752,239.15,239.08,12.51933752]
[1732726029198,23.776884,239.16,239.08,12.51933752]
[1732726029377,23.776884,239.16,239.1,13.02007682]
[1732726029578,20.0,239.16,239.12,12.51933752]
[1732726029987,20.0,239.12,239.1,0.5007393]
[1732726030176,74.3901,239.17,239.1,0.5007393]
[1732726030177,10.03264193,239.17,239.1,0.5007393]
[1732726030382,12.51933752,239.16,239.1,0.5007393]
[1732726030604,12.51933752,239.14,239.1,0.5007393]
[1732726030896,20.0,239.13,239.1,0.5007393]
[1732726031305,43.776884,239.11,239.1,0.5007393]
[1732726032301,43.776884,239.11,239.1,3.93e-05]
[1732726032504,45.031484,239.11,239.1,3.93e-05]
[1732726033518,50.67402593,239.11,239.1,3.93e-05]
[1732726034293,45.031484,239.11,239.1,3.93e-05]
[1732726034597,1.2546,239.11,239.1,3.93e-05]
[1732726034773,2.61402611,239.18,239.1,3.93e-05]
[1732726034774,1.2543,239.17,239.1,12.51937682]
[1732726034977,1.2543,239.17,239.12,12.51933752]
[1732726035376,6.89674193,239.19,239.14,12.51933752]
[1732726035597,1.2541,239.21,239.16,12.51933752]
[1732726035908,18.16187945,239.3,239.2,12.51933752]
[1732726036199,12.51933752,239.28,239.2,12.51933752]
[1732726037482,1.2538,239.27,239.2,12.51933752]
[1732726037698,12.51933752,239.26,239.18,12.51933752]
[1732726037914,12.51933752,239.24,239.16,12.51933752]
[1732726038081,12.51933752,239.26,239.18,12.51933752]
[1732726038276,1.2538,239.27,239.2,12.51933752]
[1732726038987,6.89634193,239.27,239.2,12.51933752]
[1732726039192,12.51933752,239.26,239.18,12.51933752]
[1732726039598,1.2539,239.25,239.18,12.51933752]
[1732726040695,12.51933752,239.24,239.16,12.51933752]
[1732726041483,23.776884,239.23,239.16,12.51933752]
[1732726041795,28.165884,239.23,239.16,12.51933752]
[1732726042178,33.80842593,239.23,239.16,12.51933752]
[1732726042392,28.165884,239.23,239.16,12.51933752]
[1732726042578,33.80842593,239.23,239.16,12.51933752]
[1732726042782,28.165884,239.23,239.16,12.51933752]
[1732726044498,23.776884,239.21,239.14,12.51933752]
[1732726045699,23.776884,239.22,239.15,12.51933752]
[1732726046293,23.776884,239.22,239.1,3.93e-05]
[1732726046507,25.030884,239.23,239.17,12.51933752]
[1732726046982,20.0,239.22,239.17,12.51933752]
[1732726047403,15.65383752,239.27,239.19,12.51933752]
[1732726047612,1.2538,239.26,239.19,12.51933752]
[1732726047810,1.2538,239.26,239.21,12.51933752]
[1732726048306,1.2538,239.26,239.19,12.51933752]
[1732726049194,1.2538,239.26,239.16,4.1812]
[1732726049195,1.2538,239.26,239.21,12.51933752]
[1732726049505,1.2538,239.26,239.19,12.51933752]
[1732726049892,1.2536,239.31,239.24,12.51933752]
[1732726050089,1.2536,239.31,239.2,6.2388]
[1732726050293,1.2536,239.31,239.27,12.51933752]
[1732726050505,12.51933752,239.34,239.27,12.51933752]
[1732726050506,1.2534,239.33,239.27,12.51933752]
[1732726050911,1.2534,239.33,239.25,12.51933752]
[1732726051589,36.29622152,239.32,239.25,12.51933752]
[1732726051790,12.51933752,239.32,239.25,12.51933752]
[1732726052310,12.51933752,239.32,239.23,12.51933752]
[1732726052510,12.51933752,239.26,239.15,16.5595]
[1732726052812,23.776884,239.25,239.17,12.51933752]
[1732726053315,85.6545,239.33,239.17,12.51933752]
[1732726053316,23.776884,239.23,239.17,12.51933752]
[1732726053490,1.254,239.22,239.15,12.51933752]
[1732726055119,23.776884,239.21,239.15,12.51933752]
[1732726055613,1.254,239.22,239.15,12.51933752]
[1732726055804,1.254,239.22,239.17,12.51933752]
[1732726056500,20.0,239.22,239.17,12.51933752]
[1732726056700,20.0,239.22,239.1,16.5952393]
[1732726056701,28.165884,239.23,239.15,12.51933752]
[1732726057089,40.68522152,239.23,239.15,12.51933752]
[1732726057795,20.0,239.14,239.1,3.93e-05]
[1732726057989,32.51933752,239.14,239.1,3.93e-05]
[1732726058390,20.0,239.11,239.1,3.93e-05]
[1732726058595,45.031484,239.11,239.1,3.93e-05]
[1732726059108,1.2546,239.11,239.1,3.93e-05]
[1732726060096,25.031484,239.11,239.1,3.93e-05]
[1732726061324,37.55082152,239.11,239.1,3.93e-05]
[1732726062407,107.55082152,239.11,239.1,3.93e-05]
[1732726062800,37.55082152,239.11,239.1,3.93e-05]
[1732726063000,107.55082152,239.11,239.1,3.93e-05]
[1732726063219,117.55082152,239.11,239.1,3.93e-05]
[1732726063556,23.776884,239.02,239.0,2.09205]
[1732726063703,20.0,239.03,239.0,2.09205]
[1732726064028,20.0,239.05,239.0,2.09205]
[1732726064228,20.0,239.01,239.0,2.09205]
[1732726064398,43.776884,239.01,239.0,2.09205]
[1732726064605,20.0,239.01,239.0,2.09205]
[1732726064804,21.2551,239.01,239.0,2.09205]
[1732726065115,20.0,239.01,239.0,2.09205]
[1732726065699,1.2551,239.02,239.0,2.09205]
[1732726066533,1.2551,239.02,239.01,12.51933752]
[1732726066918,1.2549,239.06,239.01,12.51933752]
[1732726067429,23.776884,239.05,239.01,12.51933752]
[1732726067622,23.776884,239.05,239.0,2.09205]
[1732726068703,1.2549,239.06,239.01,12.51933752]
[1732726068904,1.2548,239.08,239.01,12.51933752]
[1732726069130,21.2548,239.08,239.03,12.51933752]
[1732726069808,1.2548,239.08,239.04,12.51933752]
[1732726070401,23.776884,239.07,239.02,12.51933752]
[1732726070937,25.031684,239.08,239.02,12.51933752]
[1732726071532,20.0,239.05,239.02,12.51933752]
[1732726072208,21.2549,239.05,239.02,12.51933752]
[1732726072409,20.0,239.05,239.02,12.51933752]
[1732726072827,33.77423752,239.05,239.0,2.09205]
[1732726073525,23.776884,239.04,239.0,2.09205]
[1732726074133,23.776884,239.02,239.0,2.09205]
[1732726074634,1.255,239.03,239.0,2.09205]
[1732726074810,12.51933752,239.02,239.0,2.09205]
[1732726075014,23.776884,239.02,239.0,2.09205]
[1732726075916,15.65673752,239.05,239.0,2.09205]
[1732726076118,23.776884,239.03,239.0,2.09205]
[1732726076515,1.255,239.04,239.0,2.09205]
[1732726077923,12.51933752,239.02,239.0,2.09205]
[1732726078119,1.2551,239.01,239.0,2.09205]
[1732726078322,45.031984,239.01,239.0,2.09205]
[1732726078740,57.55132152,239.01,239.0,2.09205]
[1732726080734,45.031984,239.01,239.0,2.09205]
[1732726080939,21.2551,239.01,239.0,2.09205]
[1732726082132,1.2551,239.03,239.0,2.09205]
[1732726082334,1.255,239.04,239.0,2.09205]
[1732726082633,12.51933752,239.07,239.0,14.61138752]
[1732726082863,7.97861731,239.13,239.04,12.51933752]
[1732726082864,12.51933752,239.12,239.04,12.51933752]
[1732726083014,12.51933752,239.11,239.04,12.51933752]
[1732726083220,12.51933752,239.1,239.03,12.51933752]
[1732726083430,12.51933752,239.11,239.04,12.51933752]
[1732726083739,12.51933752,239.1,239.03,12.51933752]
[1732726083934,12.51933752,239.11,239.04,12.51933752]
[1732726084243,12.51933752,239.1,239.03,12.51933752]
[1732726084429,12.51933752,239.11,239.04,12.51933752]
[1732726085640,12.51933752,239.11,239.01,6.5807]
[1732726085641,12.51933752,239.1,239.03,12.51933752]
[1732726086022,12.51933752,239.11,239.04,12.51933752]
[1732726086643,6.0904,239.19,239.04,12.51933752]
[1732726086644,1.2541,239.2,239.1,12.51933752]
[1732726086817,12.51933752,239.15,239.05,15.5023]
[1732726087020,12.51933752,239.15,239.06,12.51933752]
[1732726088046,1.2544,239.14,239.08,12.51933752]
[1732726088620,1.2544,239.14,239.1,12.51933752]
[1732726088919,1.2542,239.19,239.12,12.51933752]
[1732726089119,1.2541,239.21,239.15,12.51933752]
[1732726089942,1.2538,239.27,239.16,12.51933752]
[1732726090122,12.51933752,239.24,239.16,12.51933752]
[1732726090720,12.51933752,239.27,239.2,12.51933752]
[1732726090925,1.2537,239.29,239.12,4.182]
[1732726090926,12.51933752,239.25,239.16,12.51933752]
[1732726091339,12.51933752,239.23,239.14,12.51933752]
[1732726091648,12.51933752,239.21,239.12,12.51933752]
[1732726091827,12.51933752,239.23,239.14,12.51933752]
[1732726092021,1.254,239.22,239.14,12.51933752]
[1732726092344,1.254,239.22,239.12,12.51933752]
[1732726092345,12.51933752,239.21,239.12,12.51933752]
[1732726092518,12.51933752,239.21,239.14,12.51933752]
[1732726093249,12.51933752,239.21,239.07,4.1828]
[1732726093424,1.2541,239.2,239.13,12.51933752]
[1732726096245,1.2541,239.2,239.15,12.51933752]
[1732726096452,21.2539,239.24,239.19,12.51933752]
[1732726096747,1.2539,239.24,239.19,12.51933752]
[1732726097344,12.51933752,239.23,239.1,4.1823]
[1732726097655,12.51933752,239.23,239.14,12.51933752]
[1732726098532,13.77333752,239.23,239.16,12.51933752]
[1732726098745,1.254,239.23,239.16,12.51933752]
[1732726099424,12.51933752,239.27,239.18,12.51933752]
[1732726099626,12.51933752,239.25,239.18,12.51933752]
[1732726099825,12.51933752,239.25,239.16,12.51933752]
[1732726100347,12.51933752,239.22,239.08,4.1827]
[1732726100531,12.51933752,239.22,239.07,11.29110784]
[1732726100532,1.2541,239.21,239.12,16.70113752]
[1732726100730,1.2541,239.21,239.14,12.51933752]
[1732726101227,36.29622152,239.2,239.12,12.51933752]
[1732726102446,1.2542,239.19,239.12,12.51933752]
[1732726103244,13.77333752,239.22,239.14,12.51933752]
[1732726104625,12.51933752,239.2,239.12,12.51933752]
[1732726106447,12.51933752,239.18,239.1,12.51933752]
[1732726106642,12.51933752,239.16,239.08,12.51933752]
[1732726106823,12.51933752,239.14,239.06,18.68113752]
[1732726107028,12.51933752,239.14,239.06,12.51933752]
[1732726107243,12.51933752,239.16,239.1,12.51933752]